bitfinex/quotes_SOLUSD_20220114
["timestamp","ask_amount","ask_price","bid_price","bid_amount"]
[1642157878472,13.2885,143.03,143.0,3.776971]
[1642157878868,10.4935,143.03,143.0,3.776971]
[1642157879268,10.4886,143.07,143.01,6.06439993]
[1642157879469,6.00950906,143.09,143.01,11.52739993]
[1642157879871,6.00950906,143.09,143.02,8.35]
[1642157880070,2.795,143.18,143.02,8.35]
[1642157880270,34.9527,143.14,143.03,31.18326194]
[1642157880480,10.4851,143.13,143.03,31.18326194]
[1642157881673,10.4837,143.15,143.03,41.66806194]
[1642157881872,2.795,143.14,143.03,48.24006194]
[1642157882072,10.4837,143.15,143.03,48.24006194]
[1642157883075,10.7437,143.15,143.03,48.24006194]
[1642157883273,10.7437,143.15,143.03,44.46306194]
[1642157883472,10.4837,143.15,143.03,44.46306194]
[1642157884077,10.4837,143.15,143.03,59.54206194]
[1642157884273,2.795,143.18,143.03,59.54206194]
[1642157884676,11.145,143.21,143.03,39.53326194]
[1642157884976,4.49577588,143.17,143.0,2.795]
[1642157885175,10.488,143.1,142.95,8.35]
[1642157885375,2.795,143.09,142.95,8.35]
[1642157885775,2.795,143.1,142.96,31.36701977]
[1642157885976,2.795,143.12,142.96,39.71701977]
[1642157886176,0.26,143.1,142.96,39.71701977]
[1642157886376,2.795,143.09,142.96,39.71701977]
[1642157886576,10.4884,143.09,142.96,39.71701977]
[1642157887478,10.4884,143.09,142.97,10.4893]
[1642157887677,2.795,143.09,142.98,8.35]
[1642157887881,36.925,143.18,142.99,22.44192099]
[1642157888082,36.925,143.18,143.0,8.35]
[1642157888278,36.925,143.18,143.0,14.958]
[1642157888478,38.62577588,143.18,143.0,14.958]
[1642157888879,8.35,143.17,143.0,14.958]
[1642157889078,2.795,143.16,143.0,14.958]
[1642157889482,10.4854,143.13,143.0,8.35]
[1642157889679,11.145,143.12,142.94,2.795]
[1642157889880,11.145,143.12,142.93,23.2154]
[1642157889881,12.84577588,143.12,142.93,23.2154]
[1642157890079,1.70077588,143.11,142.93,23.2154]
[1642157890279,11.145,143.1,142.93,23.2154]
[1642157890479,10.4945,143.03,142.91,79.2891]
[1642157890683,2.797,143.02,142.9,496.43085189]
[1642157890880,72.65777588,143.02,142.9,496.43085189]
[1642157891385,81.00777588,143.02,142.9,496.43085189]
[1642157891580,10.4984,142.96,142.86,23.58963455]
[1642157891784,13.2964,142.96,142.86,23.58963455]
[1642157892384,10.4984,142.96,142.86,23.58963455]
[1642157892583,10.4972,142.98,142.86,31.93963455]
[1642157892784,11.148,143.06,142.86,32.18963455]
[1642157892983,11.148,143.06,142.89,28.92137887]
[1642157893185,4.00817759,142.98,142.9,8.35]
[1642157894586,10.4957,143.0,142.9,8.35]
[1642157894784,38.99387759,143.03,142.9,8.35]
[1642157894985,38.99387759,143.03,142.91,2.797]
[1642157895187,38.99387759,143.03,142.92,22.50076951]
[1642157895388,2.797,143.02,142.92,22.50076951]
[1642157895791,10.4946,143.01,142.92,22.50076951]
[1642157896088,2.797,143.0,142.88,3.98168624]
[1642157896287,8.61,143.01,142.88,3.98168624]
[1642157896490,2.798,142.99,142.88,3.98168624]
[1642157896688,8.35,142.98,142.88,3.98168624]
[1642157896889,2.798,142.97,142.88,3.98168624]
[1642157897091,10.4993,142.95,142.86,28.82889702]
[1642157897290,2.799,142.94,142.86,28.82889702]
[1642157897492,4.49977588,142.96,142.86,3.98168624]
[1642157897693,1.70077588,142.95,142.86,3.98168624]
[1642157897991,1.70077588,142.95,142.79,2.798]
[1642157897992,75.0,142.93,142.79,2.798]
[1642157898190,75.0,142.93,142.74,10.01022861]
[1642157898191,5.0,142.9,142.74,10.01022861]
[1642157898396,11.149,142.89,142.75,0.26]
[1642157898592,25.86553581,142.89,142.75,0.26]
[1642157898891,5.0,142.85,142.8,3.93463943]
[1642157899096,68.16,142.87,142.71,10.01022861]
[1642157899097,11.149,142.84,142.71,10.01022861]
[1642157899293,8.35,142.83,142.71,10.01022861]
[1642157899491,2.801,142.82,142.71,10.01022861]
[1642157899691,2.801,142.82,142.72,25.0589649]
[1642157899692,8.35,142.81,142.72,25.0589649]
[1642157900093,8.61,142.81,142.72,25.0589649]
[1642157900492,10.5112,142.8,142.72,25.0589649]
[1642157900693,2.801,142.79,142.71,10.01022861]
[1642157900891,8.35,142.78,142.71,10.01022861]
[1642157901093,2.802,142.77,142.71,10.01022861]
[1642157901294,2.802,142.77,142.63,75.8409]
[1642157901492,8.35,142.78,142.64,2.803]
[1642157901696,8.35,142.78,142.64,26.38078433]
[1642157901898,10.5148,142.76,142.65,11.152]
[1642157902093,0.26,142.81,142.65,12.69066782]
[1642157902292,2.802,142.86,142.66,1.53866782]
[1642157902492,2.802,142.86,142.68,28.93351003]
[1642157902794,2.801,142.9,142.69,8.35]
[1642157902991,10.5044,142.91,142.72,24.8823306]
[1642157903190,8.02490628,142.88,142.72,41.7833306]
[1642157903391,2.799,142.94,142.73,76.53866782]
[1642157903594,2.799,142.94,142.74,8.35]
[1642157903894,10.4987,142.99,142.79,10.5001]
[1642157904091,10.4987,142.99,142.81,25.78222492]
[1642157904292,2.799,143.01,142.82,11.149]
[1642157904491,7.23397925,143.02,142.82,18.878]
[1642157904693,7.23397925,143.02,142.83,13.16535973]
[1642157904694,0.00934864,142.93,142.83,13.16535973]
[1642157904893,0.00934864,142.93,142.84,115.8764025]
[1642157905094,16.03451011,143.05,142.86,104.42]
[1642157905295,16.03451011,143.05,142.88,28.66035978]
[1642157905496,16.03451011,143.05,142.92,104.42]
[1642157905692,14.42998508,143.07,142.94,104.42]
[1642157905892,14.42998508,143.07,142.96,23.62562524]
[1642157906097,14.42998508,143.07,142.97,11.145]
[1642157906292,14.42998508,143.07,142.99,10.4853]
[1642157906493,14.42998508,143.07,143.01,28.1243568]
[1642157906694,14.42998508,143.07,143.01,36.4743568]
[1642157906895,2.795,143.1,143.01,36.4743568]
[1642157907093,8.79324218,143.12,143.01,36.4743568]
[1642157907295,2.795,143.11,143.01,36.4743568]
[1642157908094,2.795,143.17,143.01,36.4743568]
[1642157908697,2.795,143.17,143.01,36.9843568]
[1642157909097,2.795,143.17,143.01,47.4677568]
[1642157909297,2.795,143.17,143.01,49.00642462]
[1642157909496,2.795,143.17,143.02,68.16]
[1642157909724,2.795,143.17,143.04,27.85786287]
[1642157909897,2.795,143.2,143.05,8.35]
[1642157910097,10.4851,143.17,143.05,8.35]
[1642157910297,2.795,143.16,143.05,8.35]
[1642157910597,2.795,143.2,143.05,8.35]
[1642157910796,8.79324218,143.23,143.05,8.35]
[1642157910797,8.79324218,143.23,143.06,2.794]
[1642157911001,8.79324218,143.23,143.09,68.16]
[1642157911201,8.79324218,143.23,143.11,30.7074973]
[1642157911400,8.79324218,143.23,143.13,10.4747]
[1642157911601,8.79324218,143.23,143.14,31.73724698]
[1642157912801,2.793,143.22,143.14,31.73724698]
[1642157913003,2.793,143.22,143.14,23.38724698]
[1642157913202,2.793,143.24,143.14,23.38724698]
[1642157913404,2.793,143.26,143.14,23.38724698]
[1642157913602,4.49377588,143.26,143.14,23.38724698]
[1642157913806,2.793,143.26,143.14,23.38724698]
[1642157914404,10.48,143.23,143.14,23.38724698]
[1642157914607,2.793,143.22,143.14,23.38724698]
[1642157914809,2.793,143.25,143.14,23.38724698]
[1642157916408,2.793,143.25,143.14,31.60724698]
[1642157916605,2.793,143.26,143.15,8.35]
[1642157917435,8.79324218,143.27,143.15,8.35]
[1642157917635,8.79324218,143.27,143.15,19.3333]
[1642157917835,2.793,143.31,143.16,75.0]
[1642157918035,14.42998508,143.32,143.17,32.97206672]
[1642157918235,14.42998508,143.32,143.17,43.09160208]
[1642157918436,14.42998508,143.32,143.17,43.60160208]
[1642157918638,2.791,143.38,143.24,10.466]
[1642157918838,2.791,143.38,143.25,31.49067993]
[1642157919040,14.42998508,143.39,143.25,31.75067993]
[1642157919239,14.42998508,143.39,143.25,32.00067993]
[1642157919439,14.42998508,143.39,143.26,2.79]
[1642157919640,14.42998508,143.39,143.27,8.35]
[1642157919942,14.42998508,143.39,143.29,40.9058433]
[1642157920138,14.42998508,143.45,143.3,11.14]
[1642157920739,4.48977588,143.44,143.29,30.4428433]
[1642157921139,10.4675,143.39,143.29,30.4428433]
[1642157921339,2.79,143.38,143.29,30.4428433]
[1642157921546,2.79,143.38,143.26,8.35]
[1642157921740,4.49077588,143.38,143.23,8.35]
[1642157921940,1.70077588,143.37,143.23,8.35]
[1642157922239,10.4709,143.34,143.23,8.35]
[1642157922439,2.791,143.33,143.23,8.35]
[1642157922640,2.791,143.33,143.24,26.45360737]
[1642157922841,10.4709,143.34,143.24,26.45360737]
[1642157923041,34.9033,143.38,143.24,26.45360737]
[1642157923242,0.26,143.39,143.25,8.35]
[1642157923443,2.79,143.38,143.25,8.35]
[1642157923743,2.791,143.41,143.25,8.35]
[1642157924143,35.83077588,143.4,143.25,14.11]
[1642157924344,2.79,143.39,143.25,24.5761]
[1642157924542,2.79,143.4,143.25,14.11]
[1642157924743,1.70077588,143.39,143.25,5.76]
[1642157924942,2.79,143.38,143.25,5.76]
[1642157925142,2.791,143.4,143.25,5.76]
[1642157925346,10.468,143.38,143.24,26.45360737]
[1642157925542,2.791,143.37,143.24,26.45360737]
[1642157925944,1.70077588,143.38,143.24,26.45360737]
[1642157926143,1.70077588,143.36,143.19,24.3823]
[1642157926345,11.141,143.35,143.19,24.3823]
[1642157926750,12.84177588,143.35,143.19,24.3823]
[1642157927148,10.4749,143.29,143.19,24.3823]
[1642157927351,2.791,143.28,143.14,2.791]
[1642157927552,12.84177588,143.28,143.14,2.791]
[1642157927951,5.0,143.23,143.07,24.3203]
[1642157928152,11.144,143.22,143.07,24.3203]
[1642157928350,11.144,143.22,143.08,23.14902789]
[1642157928552,21.6239,143.22,143.08,23.14902789]
[1642157928753,2.794,143.22,143.08,23.14902789]
[1642157928952,2.794,143.25,143.08,25.94302789]
[1642157929653,2.794,143.25,143.09,18.8275]
[1642157930054,2.793,143.27,143.09,18.8275]
[1642157930455,2.793,143.27,143.09,19.0775]
[1642157930753,2.793,143.27,143.11,24.2826129]
[1642157930954,2.793,143.29,143.16,31.0862802]
[1642157931154,2.793,143.29,143.16,39.5612802]
[1642157932557,2.793,143.29,143.16,50.0335802]
[1642157932757,2.791,143.31,143.16,50.0335802]
[1642157933558,13.2643,143.31,143.16,31.0862802]
[1642157933758,33.78416341,143.31,143.16,31.0862802]
[1642157935064,41.36327046,143.3,143.11,8.35]
[1642157935259,10.4807,143.2,143.08,11.143]
[1642157935459,10.4807,143.2,143.08,8.35]
[1642157935859,2.794,143.19,143.04,11.144]
[1642157936087,2.794,143.22,143.06,27.80445885]
[1642157936287,2.794,143.22,143.06,36.15445885]
[1642157936487,2.794,143.24,143.07,2.794]
[1642157936688,2.794,143.24,143.09,30.00501642]
[1642157936887,2.794,143.24,143.09,38.31801642]
[1642157937087,2.794,143.24,143.09,48.79591642]
[1642157937689,1.96651098,143.16,143.09,38.31801642]
[1642157938289,1.96651098,143.16,143.09,32.79801642]
[1642157938890,1.96651098,143.16,143.09,30.00501642]
[1642157939293,1.96651098,143.15,143.09,30.00501642]
[1642157940294,0.00651098,143.12,143.09,30.00501642]
[1642157940492,0.00651098,143.12,143.1,14.41439993]
[1642157940704,15.83515011,143.28,143.11,75.0]
[1642157940892,15.83515011,143.28,143.12,34.34351612]
[1642157941094,15.83515011,143.28,143.13,69.84]
[1642157941293,13.2632,143.34,143.14,11.143]
[1642157941294,5.9927997,143.22,143.14,11.143]
[1642157941494,5.9927997,143.22,143.15,22.41775944]
[1642157941696,5.9927997,143.22,143.17,10.471]
[1642157941894,5.9927997,143.22,143.18,37.20928536]
[1642157942895,5.9927997,143.29,143.18,47.68108536]
[1642157943503,5.9927997,143.29,143.18,117.52108536]
[1642157944099,2.791,143.34,143.26,10.4664]
[1642157944299,15.97356006,143.37,143.27,23.61505803]
[1642157944500,15.97356006,143.37,143.28,8.35]
[1642157945300,13.2548,143.42,143.28,18.8151]
[1642157945502,10.4638,143.42,143.3,25.99918306]
[1642157945801,10.4638,143.42,143.31,8.35]
[1642157946402,36.92,143.43,143.31,18.8132]
[1642157946603,34.13,143.43,143.31,21.6022]
[1642157946801,2.789,143.44,143.31,11.139]
[1642157947004,1.70077588,143.46,143.31,11.139]
[1642157947005,2.789,143.42,143.31,2.789]
[1642157947208,2.79,143.45,143.3,25.99918306]
[1642157947404,10.463,143.43,143.3,25.99918306]
[1642157947603,2.79,143.42,143.3,25.99918306]
[1642157948004,2.79,143.44,143.3,25.99918306]
[1642157948406,4.49077588,143.44,143.3,25.99918306]
[1642157948803,10.4658,143.39,143.3,25.99918306]
[1642157949007,2.79,143.38,143.3,25.99918306]
[1642157949404,2.79,143.41,143.3,25.99918306]
[1642157949604,72.63,143.41,143.25,8.35]
[1642157949803,74.33077588,143.41,143.25,8.35]
[1642157950007,10.4702,143.34,143.23,24.7856]
[1642157950204,13.2612,143.34,143.21,2.791]
[1642157950407,13.2612,143.34,143.2,22.9624]
[1642157950606,1.70077588,143.33,143.21,24.86009057]
[1642157950806,2.791,143.32,143.21,24.86009057]
[1642157951107,10.4758,143.27,143.21,24.86009057]
[1642157951907,10.7358,143.27,143.21,24.86009057]
[1642157952308,10.473,143.29,143.21,33.21009057]
[1642157953407,10.4717,143.31,143.21,33.21009057]
[1642157953609,2.791,143.34,143.21,33.21009057]
[1642157953815,2.791,143.34,143.21,33.46009057]
[1642157954208,2.791,143.37,143.22,2.791]
[1642157954408,10.4692,143.34,143.24,22.80366294]
[1642157954609,18.75780995,143.37,143.26,69.84]
[1642157954811,15.96680995,143.37,143.28,24.42672853]
[1642157955210,34.13,143.4,143.28,24.42672853]
[1642157955609,44.5952,143.4,143.28,34.89242853]
[1642157955812,34.13,143.4,143.29,8.35]
[1642157956013,9.97927952,143.42,143.31,29.4888304]
[1642157956212,9.97927952,143.42,143.32,8.35]
[1642157956412,9.97927952,143.42,143.32,14.909]
[1642157956713,9.97927952,143.42,143.32,15.169]
[1642157957316,9.97927952,143.42,143.32,14.909]
[1642157957518,9.97927952,143.42,143.33,10.4625]
[1642157957715,9.97927952,143.42,143.34,25.34376937]
[1642157957917,9.97927952,143.42,143.33,8.35]
[1642157958115,2.789,143.44,143.33,8.35]
[1642157958315,2.789,143.47,143.33,8.35]
[1642157958715,3.049,143.47,143.33,8.35]
[1642157958915,10.4635,143.42,143.34,26.07205763]
[1642157959115,2.789,143.41,143.34,26.07205763]
[1642157959316,2.789,143.42,143.34,26.07205763]
[1642157959521,2.789,143.46,143.34,42.01705763]
[1642157959716,2.789,143.47,143.34,42.01705763]
[1642157960518,10.4614,143.45,143.34,52.47885763]
[1642157961417,0.26,143.45,143.34,52.47885763]
[1642157961617,2.789,143.47,143.34,52.47885763]
[1642157961819,9.97927952,143.48,143.34,52.47885763]
[1642157962255,20.43787952,143.48,143.34,52.47885763]
[1642157962452,20.43787952,143.48,143.34,55.51785763]
[1642157962852,20.43787952,143.48,143.35,69.84]
[1642157963050,10.4586,143.48,143.39,10.4582]
[1642157963249,2.789,143.51,143.4,27.6940554]
[1642157963450,14.42998508,143.52,143.41,8.35]
[1642157964049,14.42998508,143.52,143.42,10.4556]
[1642157964249,2.787,143.51,143.4,27.6940554]
[1642157964449,10.4581,143.49,143.4,27.6940554]
[1642157964749,2.787,143.51,143.4,27.6940554]
[1642157964950,2.787,143.52,143.4,34.9680554]
[1642157965151,0.26375312,143.53,143.4,45.4257554]
[1642157965352,2.787,143.52,143.4,45.4257554]
[1642157966252,2.787,143.52,143.41,8.35]
[1642157966453,2.787,143.52,143.44,10.4545]
[1642157966653,2.787,143.52,143.44,44.07671871]
[1642157966852,0.26375312,143.53,143.44,5.621]
[1642157967051,0.26375312,143.53,143.35,72.8983]
[1642157967052,2.787,143.51,143.39,8.35]
[1642157967253,1.70077588,143.51,143.39,8.35]
[1642157967456,34.8718,143.47,143.35,81.2483]
[1642157967653,2.789,143.46,143.35,81.2483]
[1642157967856,2.789,143.46,143.37,29.47598525]
[1642157968053,0.26,143.47,143.37,37.82598525]
[1642157968453,2.789,143.52,143.37,37.82598525]
[1642157968653,3.049,143.52,143.37,37.82598525]
[1642157969254,10.4581,143.48,143.37,37.82598525]
[1642157969454,2.787,143.47,143.37,37.82598525]
[1642157969856,2.789,143.51,143.37,37.82598525]
[1642157970255,10.4602,143.45,143.37,37.82598525]
[1642157970459,2.789,143.49,143.37,37.82598525]
[1642157970860,2.789,143.49,143.37,29.47598525]
[1642157971059,1.70077588,143.48,143.37,29.47598525]
[1642157971259,2.787,143.47,143.37,29.47598525]
[1642157971558,10.4603,143.45,143.37,29.47598525]
[1642157972760,18.45188504,143.45,143.37,29.47598525]
[1642157973759,10.4603,143.45,143.37,29.47598525]
[1642157974166,10.4592,143.47,143.37,29.47598525]
[1642157975063,13.2482,143.47,143.36,8.35]
[1642157975365,1.70077588,143.46,143.32,25.3421]
[1642157975570,10.4655,143.39,143.27,88.1056]
[1642157975864,10.4655,143.39,143.29,24.6868]
[1642157976064,10.4655,143.39,143.3,31.08717662]
[1642157976065,13.5155,143.39,143.3,31.08717662]
[1642157976865,21.50708504,143.39,143.3,31.08717662]
[1642157977565,18.71708504,143.39,143.3,31.08717662]
[1642157978169,20.41786092,143.39,143.27,79.7556]
[1642157978366,10.4687,143.33,143.27,79.7556]
[1642157978567,10.4687,143.33,143.25,2.79]
[1642157978966,2.791,143.36,143.25,2.79]
[1642157979166,34.8956,143.37,143.26,29.59373525]
[1642157979565,10.4677,143.35,143.26,40.06193525]
[1642157979766,2.791,143.38,143.26,48.41193525]
[1642157979969,36.92,143.4,143.27,69.84]
[1642157980167,2.79,143.43,143.27,78.19]
[1642157980467,1.70077588,143.44,143.27,78.19]
[1642157980468,38.62077588,143.48,143.28,1.53424649]
[1642157980669,34.13,143.44,143.29,33.21067859]
[1642157980873,0.26375312,143.39,143.29,40.86467859]
[1642157981069,0.26375312,143.39,143.31,10.464]
[1642157981270,0.26375312,143.39,143.32,27.09492057]
[1642157981669,15.98317008,143.45,143.33,8.08624688]
[1642157981871,15.98317008,143.45,143.33,13.91624688]
[1642157982071,7.99271218,143.43,143.33,13.91624688]
[1642157982473,7.99271218,143.43,143.33,83.75624688]
[1642157982670,7.99271218,143.43,143.35,10.4615]
[1642157982872,7.99271218,143.43,143.36,28.86074625]
[1642157983071,10.78271218,143.46,143.36,28.86074625]
[1642157983273,10.78271218,143.46,143.37,8.35]
[1642157983471,7.99271218,143.46,143.37,8.35]
[1642157983973,7.99271218,143.46,143.37,18.8101]
[1642157984172,2.789,143.5,143.37,18.8101]
[1642157984374,2.787,143.51,143.37,8.35]
[1642157984573,2.787,143.51,143.36,28.86074625]
[1642157984574,1.70077588,143.49,143.36,28.86074625]
[1642157984774,2.787,143.48,143.32,56.4565]
[1642157984971,2.787,143.48,143.32,48.1065]
[1642157985173,10.05077588,143.47,143.29,23.0601]
[1642157985373,10.4653,143.38,143.31,10.4647]
[1642157985574,10.4653,143.38,143.29,23.0601]
[1642157985881,10.4653,143.38,143.3,29.30700496]
[1642157987473,10.4653,143.38,143.3,39.77260496]
[1642157988275,10.4653,143.38,143.3,29.30700496]
[1642157988504,10.4653,143.38,143.29,23.0601]
[1642157988698,10.4653,143.38,143.27,49.7168]
[1642157988898,10.4702,143.32,143.27,2.79]
[1642157989399,10.4702,143.32,143.28,0.07693318]
[1642157990702,3.99790902,143.3,143.28,0.07693318]
[1642157990900,14.46900902,143.3,143.28,0.07693318]
[1642157991901,14.72900902,143.3,143.28,0.07693318]
[1642157992101,14.46900902,143.3,143.28,0.07693318]
[1642157992302,3.99790902,143.3,143.23,0.07693318]
[1642157993604,3.99790902,143.29,143.23,0.07693318]
[1642157994003,4.25790902,143.29,143.23,0.07693318]
[1642157994606,3.99790902,143.29,143.23,0.07693318]
[1642157995007,3.99790902,143.29,143.23,8.42693318]
[1642157995606,2.791,143.4,143.23,18.89743318]
[1642157995607,3.99790902,143.32,143.23,18.89743318]
[1642157996408,14.46730902,143.32,143.23,18.89743318]
[1642157996608,14.46730902,143.32,143.23,0.07693318]
[1642157996807,14.72730902,143.32,143.23,0.07693318]
[1642157997209,4.49177588,143.31,143.23,0.07693318]
[1642157997408,4.49177588,143.31,143.22,0.07693318]
[1642157997608,3.99790902,143.29,143.22,0.07693318]
[1642157997809,2.791,143.28,143.22,0.07693318]
[1642157998608,10.4755,143.27,143.22,0.07693318]
[1642157998916,3.99790902,143.25,143.22,0.07693318]
[1642157999309,2.791,143.24,143.22,0.07693318]
[1642157999708,13.2702,143.24,143.22,0.07693318]
[1642157999910,10.7392,143.24,143.22,0.07693318]
[1642158000710,10.7392,143.24,143.15,0.07693318]
[1642158001518,10.4814,143.19,143.15,0.07693318]
[1642158002117,12.18217588,143.19,143.15,0.07693318]
[1642158002513,10.4858,143.13,143.08,3.80796683]
[1642158003313,10.4858,143.13,143.04,31.2412957]
[1642158004916,13.2808,143.13,143.01,104.9385]
[1642158005313,14.98157588,143.13,143.01,104.9385]
[1642158005516,15.24157588,143.13,143.01,80.876]
[1642158005914,15.24157588,143.13,143.02,31.686932]
[1642158006514,23.59157588,143.13,142.98,3.80796683]
[1642158007114,23.59157588,143.13,142.96,3.80796683]
[1642158007115,4.00417079,143.12,142.96,3.80796683]
[1642158007314,34.9691,143.08,142.96,3.80796683]
[1642158007513,6.79537878,143.11,142.97,29.80067644]
[1642158007715,4.00037878,143.11,142.97,38.15067644]
[1642158008616,4.00037878,143.11,143.0,28.62044904]
[1642158009219,0.58405143,143.06,143.0,28.62044904]
[1642158009417,0.58405143,143.03,143.0,28.62044904]
[1642158009614,0.58405143,143.03,143.01,6.06439993]
[1642158009815,0.58405143,143.03,143.01,6.55081747]
[1642158010019,0.00405143,143.03,143.01,6.55081747]
[1642158011520,6.79537878,143.12,143.02,78.19]
[1642158011821,0.00037878,143.13,143.04,69.84]
[1642158012019,0.00037878,143.13,143.06,31.59779716]
[1642158012218,0.00037878,143.13,143.07,21.6267]
[1642158012618,0.00037878,143.13,143.07,11.145]
[1642158012921,8.79929837,143.22,143.07,8.35]
[1642158013118,8.79929837,143.22,143.08,0.48641754]
[1642158013320,10.4845,143.15,143.08,0.48641754]
[1642158013818,4.00187777,143.21,143.08,8.83641754]
[1642158014018,2.794,143.2,143.08,14.52941754]
[1642158014221,4.00187777,143.21,143.14,10.4768]
[1642158014422,4.00187777,143.21,143.13,28.11674513]
[1642158014819,4.00187777,143.21,143.13,5.557]
[1642158015420,4.26187777,143.21,143.12,8.35]
[1642158015620,2.793,143.2,143.12,8.35]
[1642158015821,2.793,143.2,143.09,8.35]
[1642158016021,2.793,143.2,143.13,0.48641754]
[1642158016320,34.9411,143.2,143.13,0.48641754]
[1642158016520,2.793,143.19,143.13,0.48641754]
[1642158017123,10.482,143.17,143.13,0.48641754]
[1642158018122,13.2768,143.16,143.13,0.48641754]
[1642158018321,10.4828,143.16,143.13,0.48641754]
[1642158018727,2.794,143.15,143.13,0.48641754]
[1642158018926,2.794,143.18,143.13,0.48641754]
[1642158019125,2.794,143.18,143.05,0.48641754]
[1642158019327,10.4866,143.14,143.05,0.48641754]
[1642158019528,37.7519,143.13,143.05,31.67075267]
[1642158019726,104.7969,143.13,143.05,0.48641754]
[1642158019926,2.795,143.12,143.05,0.48641754]
[1642158020126,2.795,143.17,143.05,0.48641754]
[1642158020326,10.4871,143.1,143.05,0.48641754]
[1642158020724,10.4871,143.1,143.05,26.10085482]
[1642158020927,2.795,143.12,143.05,26.10085482]
[1642158021129,2.795,143.17,143.05,26.10085482]
[1642158021327,10.4835,143.15,143.05,36.58435482]
[1642158021527,10.4835,143.15,143.05,43.96435482]
[1642158021726,8.00676668,143.17,143.05,52.31435482]
[1642158021929,8.00676668,143.17,143.06,2.795]
[1642158022261,8.00676668,143.17,143.08,31.33566805]
[1642158022461,6.00429837,143.21,143.08,49.75866805]
[1642158022761,13.2733,143.2,143.08,49.75866805]
[1642158023062,13.2733,143.2,143.07,0.48641754]
[1642158023565,11.144,143.2,143.07,0.48641754]
[1642158023962,11.404,143.2,143.07,0.48641754]
[1642158024263,10.487,143.13,143.07,0.48641754]
[1642158024962,13.282,143.13,143.07,0.48641754]
[1642158025361,13.282,143.13,143.02,0.48641754]
[1642158026467,1.70077588,143.12,143.02,0.48641754]
[1642158026765,10.492,143.07,143.02,0.48641754]
[1642158026964,2.795,143.06,143.02,0.48641754]
[1642158027165,2.795,143.07,143.02,0.48641754]
[1642158027367,2.795,143.11,143.03,22.59457925]
[1642158027564,10.4881,143.1,143.03,22.59457925]
[1642158028164,2.795,143.13,143.03,22.59457925]
[1642158028364,2.795,143.13,143.03,37.91157925]
[1642158028564,8.00862895,143.17,143.04,3.28141754]
[1642158028965,10.4848,143.14,143.04,11.63141754]
[1642158029167,2.795,143.13,143.04,11.63141754]
[1642158029366,2.795,143.16,143.04,3.28141754]
[1642158029768,3.055,143.16,143.04,3.28141754]
[1642158029967,10.4835,143.16,143.04,18.63221754]
[1642158030164,2.795,143.18,143.05,39.05653125]
[1642158030565,4.00333994,143.15,143.05,39.05653125]
[1642158031165,4.00333994,143.15,143.06,2.795]
[1642158031365,4.00333994,143.15,143.05,41.85153125]
[1642158031566,6.00429837,143.19,143.06,0.48641754]
[1642158031765,6.00429837,143.19,143.08,27.34202125]
[1642158031965,6.00429837,143.19,143.09,11.144]
[1642158032765,6.00429837,143.25,143.09,11.144]
[1642158032966,2.793,143.24,143.09,11.144]
[1642158033165,72.633,143.24,143.09,11.144]
[1642158033365,10.4806,143.2,143.09,11.144]
[1642158033566,10.4806,143.2,143.09,8.35]
[1642158033967,80.3206,143.2,143.09,8.35]
[1642158034166,2.794,143.19,143.09,8.35]
[1642158034366,37.7399,143.19,143.09,8.35]
[1642158034569,2.794,143.24,143.09,8.35]
[1642158034770,2.794,143.24,143.1,0.48641754]
[1642158035668,10.4813,143.19,143.1,0.48641754]
[1642158035870,2.794,143.18,143.1,0.48641754]
[1642158036271,2.794,143.2,143.1,0.48641754]
[1642158036470,11.144,143.2,143.1,0.48641754]
[1642158036870,10.4875,143.14,143.1,0.48641754]
[1642158037170,13.2815,143.14,143.1,0.48641754]